Cogmind - Beta 11 X6 @@@ ROGUE MODE // 2021.07.17 @ 17:24:26 Player: Zyalin Result: Destroyed by S-27 Virus with Autogun Performance ------------- Evolutions (3) 1500 Regions Visited (4) 800 Robots Destroyed (48) 240 Value Destroyed (1500) 1500 Prototype IDs (0) 0 Alien Tech Used (0) 0 Bonus (117) 117 TOTAL SCORE: 4157 Bonus ------- High Alert Combat Kills 117 Cogmind --------- Core Integrity 0/700 Matter 218/300 Energy 160/160 System Corruption 4% Temperature Cool (0) Movement Walking (290) Ox2 Location -7/Factory Parts ------- > --- POWER (1) -------- Light Nuclear Core > --- PROPULSION (2) --- Improved Titanium Leg > --- UTILITY (7) ------ Coolant Injector High-capacity Storage Unit > --- WEAPON (3) ------- Autogun Autogun Mining Claw > --- INVENTORY (20) --- Armored Wheel Armored Wheel Coolant Injector Large Storage Unit Medium Matter Pod (100) Signal Interpreter Peak State ------------ > --- POWER ------------ Ion Engine > --- PROPULSION ------- Armored Treads Advanced Treads > --- UTILITY ---------- Improved Heat Sink Advanced Heat Sink High-capacity Storage Unit Matter Filter Improved Utility Shielding Hardened Medium Armor Plating Hardened Medium Armor Plating > --- WEAPON ----------- EM Pulse Gun Beam Rifle Pulse Rifle > --- INVENTORY -------- Light Ion Engine Improved Ion Engine Light Treads Armored Treads Armored Treads Improved Titanium Leg Armored Wheel Armored Wheel Coolant Injector Coolant Injector Large Storage Unit Huge Storage Unit Medium Matter Pod Signal Interpreter Hardened Medium Armor Plating Hardened Medium Armor Plating EM Pulse Gun Particle Gun Shock Bomb Launcher Mining Claw [Rating: 39] Favorites ----------- Power Ion Engine Engine Ion Engine Power Core Light Nuclear Core Propulsion Armored Treads Treads Armored Treads Leg Improved Titanium Leg Wheel Compact Wheel Utility Hardened Medium Armor Plating Device Improved Heat Sink Storage High-capacity Storage Unit Protection Hardened Medium Armor Plating Weapon Beam Rifle Energy Gun Beam Rifle Ballistic Gun Light Assault Rifle Launcher Shock Bomb Launcher Special Weapon Mining Laser Slashing Weapon Mining Claw Build | -11 -10 -9 -8 -7 ------- Run | Scr Mat Mat Mat Fac Slots Evolved 6 | . . 2 2 2 Power . | . . . . . Propulsion . | . . . . . Utility 5 | . . 2 1 2 Weapon 1 | . . . 1 . Parts Attached 77 | 7 19 7 20 24 Power 10 | 1 3 . 3 3 Engine 7 | 1 2 . 2 2 Core 3 | . 1 . 1 1 Reactor . | . . . . . Propulsion 13 | 2 2 2 . 7 Treads 8 | . . 2 . 6 Leg 1 | . . . . 1 Wheel 4 | 2 2 . . . Hover . | . . . . . Flight . | . . . . . Utility 26 | 2 3 5 10 6 Device 9 | 1 1 . 5 2 Storage 4 | 1 1 2 . . Processor . | . . . . . Hackware . | . . . . . Protection 13 | . 1 3 5 4 Artifact . | . . . . . Weapon 28 | 2 11 . 7 8 Energy Gun 15 | . 8 . 3 4 Energy Cannon . | . . . . . Ballistic Gun 9 | 2 1 . 4 2 Ballistic Cannon . | . . . . . Launcher 1 | . . . . 1 Special Weapon 1 | . 1 . . . Impact Weapon . | . . . . . Slashing Weapon 2 | . 1 . . 1 Piercing Weapon . | . . . . . Special Melee Weapon . | . . . . . Unidentified Prototypes . | . . . . . Parts Lost 34 | . 4 . 8 22 Power 4 | . . . 1 3 Propulsion 4 | . . . . 4 Utility 12 | . . . 3 9 Weapon 14 | . 4 . 4 6 Highest Loss Streak 13 | . 2 . 2 13 Average Slot Usage (%) 94 | . 98 99 96 85 Engine 7 | . 10 11 6 6 Core 1 | . 2 . 2 . Treads 12 | . . 9 18 13 Wheel 6 | . 28 11 . . Device 13 | . 9 11 11 19 Storage 9 | . 14 11 9 7 Protection 17 | . 4 22 23 17 Energy Gun 16 | . 17 22 17 14 Ballistic Gun 5 | . 5 . 8 4 Naked Turns . | . . . . . Heaviest Build 98 | 14 54 98 71 77 Greatest Support 44 | 32 32 40 40 44 Greatest Overweight (x) 14 | . 2 4 1 14 Average Overweight (x) 1 | . 1 1 1 1 Largest Inventory Capacity 25 | 8 20 25 20 20 Average Capacity 18 | 7 17 20 20 20 Most Carried 22 | 6 20 22 19 20 Average Carried 15 | 2 12 19 17 16 Final Capacity 20 | 8 20 20 20 20 Final Carried 20 | 6 20 19 19 6 Class Distribution -------------------- 42% | Mutant 24% | Tank 24% | Scavenger-Tank 8% | Scavenger-Mutant Dominant Class ---------------- Mutant | -10/Materials Mutant | -9/Materials Tank | -8/Materials Scavenger-Tank | -7/Factory Resources | -11 -10 -9 -8 -7 ----------- Run | Scr Mat Mat Mat Fac Matter Collected 1121 | 349 294 82 242 154 Remotely . | . . . . . Salvage Created 1850 | 122 309 149 791 479 Parts 79 | 9 14 5 30 21 Haulers Intercepted 1 | . 1 . . . Recyclers Shooed 3 | . 2 . 1 . Parts Field Recycled . | . . . . . Retrieved Matter . | . . . . . Parts Self-Destructed . | . . . . . Prevented . | . . . . . Kills | -11 -10 -9 -8 -7 ------- Run | Scr Mat Mat Mat Fac Combat Hostiles Destroyed 36 | . 7 3 15 11 Melee 2 | . 1 . . 1 Guns 28 | . 6 3 14 5 AOE 5 | . . . . 5 Classes Destroyed 9 | 3 3 1 1 1 Worker 5 | 2 . . 2 1 Tunneler 2 | 1 . . . 1 Hauler 1 | . 1 . . . Recycler 3 | 1 1 . 1 . Operator 1 | . . . 1 . Swarmer 11 | . 3 . 4 4 Grunt 19 | . 4 2 8 5 Duelist 2 | . . . . 2 Sentry 4 | . . 1 3 . Best Kill Streak 7 | 2 3 2 4 7 Combat Bots Only 6 | . 2 2 3 6 Max Kills in Single Turn 6 | 1 1 1 2 6 Gunslinging 1 | . . . 1 . Exploded 5 | . . . . 5 Melee 1 | . 1 . . 1 Uniques/NPCs Destroyed . | . . . . . Combat | -11 -10 -9 -8 -7 -------- Run | Scr Mat Mat Mat Fac Damage Taken 6361 | . 660 168 1893 3640 Core 953 | . 104 32 108 709 Absorbed by Shields . | . . . . . Core Remaining (%) 82 | 100 58 92 80 . Volleys Fired 161 | 15 42 11 70 23 Largest 3 | 2 2 2 3 3 Hottest 159 | 40 120 112 132 159 Shots Fired 371 | 30 71 22 201 47 Gun 364 | 30 68 22 201 43 Cannon . | . . . . . Launcher 4 | . . . . 4 Special 3 | . 3 . . . Kinetic 148 | 30 33 . 75 10 Thermal 187 | . 24 22 121 20 Explosive . | . . . . . Electromagnetic 36 | . 14 . 5 17 Robot Hit Streak 13 | 8 11 4 13 11 Robot Miss Streak 4 | 3 4 2 4 2 Penetration Max . | . . . . . Secondary Targets 6 | . 2 . 4 . Max Gunslinging Chain 1 | . 1 . 1 . Shots Hit Robots 236 | 19 41 14 125 37 Core Hits 95 | 5 15 6 44 25 Critical Kills 1 | 1 . . . . Critical Parts Destroyed 1 | . . . 1 . Critical Strikes 13 | 1 . . 8 4 Burn 10 | . . . 7 3 Destroy 2 | 1 . . 1 . Corrupt 1 | . . . . 1 Melee Attacks 19 | . 5 . . 14 Impact . | . . . . . Slashing 19 | . 5 . . 14 Piercing . | . . . . . Sneak Attacks . | . . . . . Combat Hostiles . | . . . . . Follow-up Attacks . | . . . . . Damage Inflicted 3709 | 192 609 205 1555 1148 Guns 2962 | 192 513 205 1540 512 Cannons . | . . . . . Explosions 595 | . . . . 595 Melee 95 | . 72 . . 23 Ramming 33 | . . . 15 18 Kinetic 883 | 192 207 . 356 128 Thermal 2155 | . 235 205 1143 572 Explosive . | . . . . . Electromagnetic 543 | . 95 . 41 407 Impact . | . . . . . Slashing 95 | . 72 . . 23 Piercing . | . . . . . Highest Corruption 4 | . . . . 4 Average Corruption 3 | . . . . 3 Corruption Purged . | . . . . . Effects 11 | . . . . 11 Message Errors 2 | . . . . 2 Matter Fused 3 | . . . . 3 Energy Discharges 3 | . . . . 3 Parts Rejected 1 | . . . . 1 Data Loss (minor) 2 | . . . . 2 Overload Shots . | . . . . . Overflow Damage 108 | . 2 . . 106 Projectiles . | . . . . . Explosions 106 | . . . . 106 Melee 2 | . 2 . . . Knockbacks . | . . . . . Impact . | . . . . . Kinetic . | . . . . . Secondary . | . . . . . Self-Inflicted Damage 344 | . . . . 344 Shots 6 | . . . . 6 Rammed 6 | . . . 3 3 Targets Rammed 7 | . . . 3 4 Kicked . | . . . . . Crushed 1 | . . . . 1 Highest Temperature 350 | . 292 191 350 81 Average Temperature 122 | . 107 103 145 27 Received Heat Transfer 1632 | . 255 99 882 396 Effects 6 | . . . 6 . Energy Bleed 3 | . . . 3 . Interference 3 | . . . 3 . Siege Activations . | . . . . . Robots Corrupted . | . . . . . Combat Hostiles . | . . . . . Parts Fried 2 | . . . . 2 Impact Corruptions . | . . . . . Robots Melted 1 | . . . 1 . Combat Hostiles 1 | . . . 1 . Parts Melted 16 | . 1 2 10 3 Heat Transferred 5641 | . 568 518 3441 1114 Parts Sabotaged . | . . . . . Parts Stolen . | . . . . . Parts Stripped . | . . . . . Power Chain Reactions . | . . . . . Missiles Intercepted . | . . . . . Alert | -11 -10 -9 -8 -7 ------- Run | Scr Mat Mat Mat Fac Peak Influence 932 | 20 157 110 547 932 Initial 141 | . 13 8 46 141 Average 207 | 5 60 55 339 238 Maximum Alert Level 3 | . . . 2 3 Low Security (%) 62 | 100 100 100 14 75 Level 1 25 | . . . 65 7 Level 2 8 | . . . 20 2 Level 3 4 | . . . . 14 Level 4 . | . . . . . Level 5 . | . . . . . High Security . | . . . . . Max Security . | . . . . . Squads Dispatched 3 | . 1 . 1 1 Investigation . | . . . . . Extermination . | . . . . . Reinforcement 3 | . 1 . 1 1 Assault . | . . . . . Garrison . | . . . . . Intercept . | . . . . . Construction Impeded 1 | . . . 1 . Haulers Reinforced . | . . . . . Active Scanning Responses . | . . . . . Cargo Convoy Interrupts 1 | . . . . 1 Stealth | -11 -10 -9 -8 -7 --------- Run | Scr Mat Mat Mat Fac Distress Signals 3 | . 1 . . 2 Communications Jammed . | . . . . . Distress Signals . | . . . . . Times Spotted 61 | . 9 3 28 21 Peak Tracking Total 9 | . 4 3 8 9 Tactical Retreats 9 | . . . 6 3 Traps | -11 -10 -9 -8 -7 ------- Run | Scr Mat Mat Mat Fac Traps Triggered 3 | . . . . 3 Indirectly . | . . . . . Trap Hack Attempts . | . . . . . Triggered . | . . . . . Disarmed . | . . . . . Reprogrammed . | . . . . . Reused . | . . . . . Traps Extracted . | . . . . . Installed . | . . . . . Triggered 1 | . . . . 1 Machines | -11 -10 -9 -8 -7 ---------- Run | Scr Mat Mat Mat Fac Machines Disabled 14 | . . 1 1 12 Max in Single Turn 5 | . . 1 1 5 Machines Sabotaged . | . . . . . Garrisons Compromised 1 | . . . . 1 Overloaded Fab Kills . | . . . . . Fab Network Shutdowns . | . . . . . Hacking | -11 -10 -9 -8 -7 --------- Run | Scr Mat Mat Mat Fac Machines Accessed 7 | . 1 1 4 1 Terminals 5 | . 1 1 2 1 Fabricators . | . . . . . Repair Stations 1 | . . . 1 . Recycling Units 1 | . . . 1 . Scanalyzers . | . . . . . Garrison Access . | . . . . . Total Hacks 17 | . 2 4 8 3 Successful 10 | . 1 3 4 2 Failed 7 | . 1 1 4 1 Catastrophic 2 | . . . 1 1 Database Lockouts . | . . . . . Manual 7 | . 1 2 2 2 Terminals 14 | . 2 4 5 3 Fabricators . | . . . . . Repair Stations 2 | . . . 2 . Recycling Units 1 | . . . 1 . Scanalyzers . | . . . . . Garrison Access . | . . . . . Terminal Hacks 3 | . . 2 . 1 Branch Access Points 1 | . . 1 . . Terminal Index 1 | . . . . 1 Unreport Threat 1 | . . 1 . . Fabricator Hacks . | . . . . . Repair Station Hacks 2 | . . . 2 . Scan Component 1 | . . . 1 . Repair 1 | . . . 1 . Recycling Unit Hacks 1 | . . . 1 . Retrieve Components 1 | . . . 1 . Scanalyzer . | . . . . . Garrison Access Hacks . | . . . . . Unauthorized Hacks 4 | . 1 1 1 1 Terminals 4 | . 1 1 1 1 Botnet 3 | . . 1 1 1 Disrupt 1 | . 1 . . . Fabricators . | . . . . . Repair Stations . | . . . . . Recycling Units . | . . . . . Scanalyzers . | . . . . . Garrison Access . | . . . . . Data Cores Recovered 1 | . . . 1 . Used 1 | . . . 1 . Hacking Detections 5 | . 1 1 2 1 Full Trace Events . | . . . . . Feedback Events . | . . . . . Feedback Blocked . | . . . . . Robot Schematics Acquired . | . . . . . Robots Built . | . . . . . Matter . | . . . . . Time . | . . . . . Total Robot Build Rating . | . . . . . Part Schematics Acquired . | . . . . . Parts Built . | . . . . . Matter . | . . . . . Time . | . . . . . Total Part Build Rating . | . . . . . Parts Repaired 1 | . . . 1 . Time 38 | . . . 38 . Parts Recycled . | . . . . . Recycled Matter . | . . . . . Retrieved Matter . | . . . . . Retrieved Components 9 | . . . 9 . Parts Scanalyzed . | . . . . . Part Schematics Acquired . | . . . . . Parts Damaged . | . . . . . Bothacking | -11 -10 -9 -8 -7 ------------ Run | Scr Mat Mat Mat Fac Used RIF Installer . | . . . . . Robots Hacked . | . . . . . Non-combat . | . . . . . Combat . | . . . . . Robot Hacks Applied . | . . . . . Relay Couplers Released . | . . . . . Robots Rewired . | . . . . . Allies Hacked 1 | . . . . 1 Hacks Repelled . | . . . . . Allies | -11 -10 -9 -8 -7 -------- Run | Scr Mat Mat Mat Fac Total Allies 18 | . . . . 18 Largest Group 17 | . . . . 17 Highest-Rated Group 711 | . . . . 711 Highest-Rated Ally 74 | . . . . 74 Total Orders . | . . . . . Ally Attacks 13 | . . . . 13 Total Damage 453 | . . . . 453 Kills 7 | . . . . 7 Allies Corrupted . | . . . . . Allies Melted . | . . . . . Intel | -11 -10 -9 -8 -7 ------- Run | Scr Mat Mat Mat Fac Robot Analysis Total . | . . . . . Derelict Logs Recovered . | . . . . . Drone Launches . | . . . . . Drone Recoveries . | . . . . . Exploration | -11 -10 -9 -8 -7 ------------- Run | Scr Mat Mat Mat Fac Turns Passed 2773 | 155 474 352 993 799 Spaces Moved 999 | 99 240 164 254 242 Core 7 | 5 . . . 2 Treads 538 | . . 47 254 237 Legs 3 | . . . . 3 Wheels 451 | 94 240 117 . . Hover . | . . . . . Flight . | . . . . . Fastest Speed 50 | 50 100 120 270 245 Average Speed 197 | 97 114 165 270 265 Slowest Speed 750 | 100 120 470 270 750 Overloaded Moves . | . . . . . Propulsion Burnouts . | . . . . . Robots Hopped . | . . . . . Cave-ins Triggered . | . . . . . Exploration Rate (%) 18 | 5 31 24 23 9 Regions Visited 4 Branch Regions . Pre-discovered Areas . | . . . . . Known Exits Taken . | . . . . . Unknown Exits Taken 4 | 1 1 1 1 . Scrap Searched . | . . . . . Spaces Dug . | . . . . . Terrain Destroyed 42 | . 1 . . 41 Melee . | . . . . . Projectile 1 | . 1 . . . AOE 41 | . . . . 41 Terrain Rammed . | . . . . . Walls Destroyed . | . . . . . Machines Disabled . | . . . . . Actions | -11 -10 -9 -8 -7 --------- Run | Scr Mat Mat Mat Fac Total 1460 | 126 360 234 413 327 Wait 114 | . 16 30 61 7 Move 995 | 98 239 163 253 242 Hop . | . . . . . Pick Up 48 | 6 21 10 5 6 Fast Attach 24 | 7 6 2 3 6 Attach 33 | . 4 2 11 16 Detach 4 | . 3 . 1 . Swap 20 | . 9 3 6 2 Drop 35 | . 15 13 . 7 Fire 161 | 15 42 11 70 23 Melee 19 | . 5 . . 14 Ram . | . . . . . Kick . | . . . . . Crush 7 | . . . 3 4 Escape Stasis . | . . . . . Rewire . | . . . . . Trap . | . . . . . Miscellaneous . | . . . . . Route ------- -11/Scrapyard -10/Materials -9/Materials (discovered 2 exits: *Mat / Min) -8/Materials -7/Factory History --------- Turn | Location | Event 6 | -11/Scrapyard | Discovered new exit (range 15) 156 | -11/Scrapyard | Entered Materials 307 | -10/Materials | Build established: Mutant 605 | -10/Materials | Discovered new exit (range 11) 630 | -10/Materials | Entered another Materials area 630 | -9/Materials | Evolved 2 slots: Utility x2 673 | -9/Materials | Identified exit to Mines 779 | -9/Materials | Discovered new exit (range 8) 982 | -9/Materials | Entered another Materials area 982 | -8/Materials | Evolved 2 slots: Utility x1, Weapon x1 1591 | -8/Materials | Repaired Hrd. Medium Armor Plating 1688 | -8/Materials | Build established: Tank 1912 | -8/Materials | Discovered new exit (range 8) 1975 | -8/Materials | Entered Factory 1975 | -7/Factory | Evolved 2 slots: Utility x2 2036 | -7/Factory | Build established: Scavenger-Tank 2613 | -7/Factory | Lost 13 parts (1p2n6u4w) 2638 | -7/Factory | Cargo convoy interrupted 2691 | -7/Factory | Core integrity fell below 50% 2725 | -7/Factory | Lost 8 parts (1p2n3u2w) 2743 | -7/Factory | Core integrity fell below 20% 2774 | -7/Factory | Destroyed by S-27 Virus with Autogun Last Messages --------------- 02679_ U-05 Engineer lays Concrete. 02685_ Arm. Treads destroyed. 02685_ Imp. Heat Sink destroyed. 02689_ Lgt. Treads destroyed. 02694_ System corrupted: Energy discharge (-24). 02694_ Adv. Heat Sink destroyed. 02717_ ZY AN&/1TKEF93TP0ZXM2CH BNMNE 02734_ S-27 Virus Autogun ripped off. 02735_ Lgt. Ion Engine destroyed. 02750_ S-27 Virus destroyed. 02755_ Acquired Lgt. Nuclear Core. 02756_ S-27 Virus destroyed. 02757_ Acquired 22 matter. 02761_ R-06 Scavenger collects VTOL Module. 02761_ Acquired Autogun. 02763_ Destroyed VTOL Module. 02765_ R-06 Scavenger collects Autogun. 02766_ System corrupted: Matter fused (-9). 02770_ S-27 Virus destroyed. 02772_ K-01 Serf collects debris. Map ----- +----------------------------------------------------+ | | | | | | | | | | | ?????????????????????????????????????????????????? | | ?????????????????????????????????????????????????? | | ?????????????????????????????????????????????????? | | ?????????????????????????????????????????????????? | | ?????????????????????????????????????????????????? | | ?????????????????????????????????????????????????? | | ?????????????????????????????????????????????????? | | ?????????????????????????????????????????????????? | | ?????????????????????????????????????????????????? | | ?????????????????????????????????????????????????? | | ?????????????????????????????????????????????????? | | ?????????????????????????????????????????????????? | | ?????????????????????????????????????????????????? | | ?????????????????????????????????????????????????? | | ????????????????########?????????????????????????? | | ??????????????? #?????????????????????????? | | ?????????????? #?????????????????????????? | | ?????????????? #?????????????????????????? | | ?????????????" ##############????????????? | | ?????????????" #%[s ! #????????????? | | ?????????????" #=@ ""#????????????? | | ???????????? " " #s" " " " ""#????????????? | | ????????????"" " " #s" " " " "??????????????? | | ???????????""" " " # " " " " ???????????????? | | ?????????? """ " " #k" " " " ????????????????? | | ???????? " " + " " " " ????????????????? | | ????????"" """ " " # " " " " ????????????????? | | ????????"" """ " " # " " " "?????????????????? | | ???????""" """ " " #r" " " "?????????????????? | | ?????? " " # " " " ??????????????????? | | ???????""" """ # ??????????????????? | | ???????""" """ #########?????????????????? | | ???# """ """ ! #?????????????????????????? | | #### #?????????????????????????? | | # """ """ ###/#""##????????????????????????? | | # """ """ # #????????????????????????? | | # """ """ # #????????????????????????? | | # # !##???????????????????????? | | # """ ""% # "#???????????????????????? | | #? """ ""% # #### ????????????????????? | | # """ ""% # / ????????????????????? | | # # ####?????????????????????? | | #### """ """ # ]# #??????????????????????? | | """ "" # # #??????????????????????? | | """ "" # # #??????????????????????? | +----------------------------------------------------+ Best States ------------- Heat Dissipation 67 Coolant Potential 65 Energy Generation 14 Energy Capacity 265 Matter Stores 300 Matter Capacity 300 Sight Range 16 Terrain Scan Range 16 Terrain Scan Density 10 Armor Coverage 600 Utility Shielding 66 Evasion (%) 40 Recoil Reduction 2 Matter Filtering 30 Item Schematics ----------------- None Robot Schematics ------------------ None Fabricated ------------ Nothing Alien Tech Used ----------------- None Achievements -------------- None Challenges ------------ None Game ------ Seed TiamatHeatBooster Manual? 0 Play Time 00:21:26 Cumulative 395.1 hours Start 2021.07.17 @ 17:05:05 End 2021.07.17 @ 17:24:26 Sessions 1 Manual Loads 0 Difficulty Rogue Special Mode None Game No. 261 Rogue 255 Adventurer 0 Explorer 6 Win Type - Total 39 Types 29/3/4/2/1/0/0/0/0 Lore% 88 Gallery% 90 Achievement% 87 Wizard Run 0 Options --------- ASCII 0 Keyboard 0 Movement Numpad Keybinds 0 Fullscreen 1 Font 18/X11Bold Map View 76x50 Tactical HUD 1 Map Filters NONE Filters NONE Steam 1 RUN: a12264c6-894f-46f7-9923-74295594d75a